[Event "Chessity Nationale Pupillendag 2018 - Groep F"]
[Site "Meppel, Netherlands"]
[Date "2018.06.23"]
[Round "3.5"]
[White "Yalcin, Emre"]
[Black "Madularea, David"]
[Result "0-1"]
[TimeControl "15 min + 10 sec"]
[WhiteElo "627"]
[BlackElo "961"]

1. e4 {[%clk 00:15:19]} {[%emt 00:00:34]} e5 {[%clk 00:15:19]} {[%emt
00:00:01]} 2. Nf3 {[%clk 00:15:28]} {[%emt 00:00:01]} Nf6 {[%clk 00:15:26]}
{[%emt 00:00:03]} 3. Nc3 {[%clk 00:15:34]} {[%emt 00:00:04]} Nc6 {[%clk
00:15:35]} {[%emt 00:00:02]} 4. Bc4 {[%clk 00:15:42]} {[%emt 00:00:01]} Bc5
{[%clk 00:15:41]} {[%emt 00:00:04]} 5. d3 {[%clk 00:15:47]} {[%emt 00:00:04]}
h6 {[%clk 00:15:50]} {[%emt 00:00:02]} 6. Be3 {[%clk 00:15:55]} {[%emt
00:00:02]} Bb6 {[%clk 00:15:58]} {[%emt 00:00:02]} 7. Qd2 {[%clk 00:15:47]}
{[%emt 00:00:18]} d6 {[%clk 00:16:00]} {[%emt 00:00:08]} 8. Bb5 {[%clk
00:15:42]} {[%emt 00:00:15]} Be6 {[%clk 00:15:46]} {[%emt 00:00:24]} 9. a3
{[%clk 00:15:23]} {[%emt 00:00:28]} Qe7 {[%clk 00:15:36]} {[%emt 00:00:19]} 10.
O-O-O {[%clk 00:15:26]} {[%emt 00:00:08]} O-O-O {[%clk 00:15:39]} {[%emt
00:00:08]} 11. Bxc6 {[%emt 00:00:06]} bxc6 {[%clk 00:15:46]} {[%emt 00:00:03]}
12. Na4 {[%clk 00:15:23]} {[%emt 00:00:17]} Rhe8 {[%clk 00:15:31]} {[%emt
00:00:23]} 13. Qb4 {[%clk 00:15:19]} {[%emt 00:00:15]} c5 {[%clk 00:15:10]}
{[%emt 00:00:32]} 14. Qb5 {[%clk 00:15:08]} {[%emt 00:00:20]} Bd7 {[%clk
00:14:57]} {[%emt 00:00:24]} 15. Qa6+ {[%clk 00:15:10]} {[%emt 00:00:07]} Kb8
{[%clk 00:15:05]} {[%emt 00:00:01]} 16. Nc3 {[%clk 00:15:04]} {[%emt 00:00:17]}
Bc8 {[%clk 00:14:58]} {[%emt 00:00:17]} 17. Qb5 {[%clk 00:14:14]} {[%emt
00:01:00]} Qd7 {[%clk 00:14:46]} {[%emt 00:00:22]} 18. Qxd7 {[%clk 00:13:56]}
{[%emt 00:00:28]} Bxd7 {[%clk 00:14:52]} {[%emt 00:00:04]} 19. Nd5 {[%clk
00:13:48]} {[%emt 00:00:18]} Nxd5 {[%clk 00:14:53]} {[%emt 00:00:09]} 20. exd5
{[%clk 00:13:55]} {[%emt 00:00:03]} f5 {[%clk 00:14:38]} {[%emt 00:00:25]} 21.
g3 {[%clk 00:13:50]} {[%emt 00:00:15]} g5 {[%clk 00:14:36]} {[%emt 00:00:11]}
22. Rhe1 {[%clk 00:13:35]} {[%emt 00:00:26]} f4 {[%clk 00:14:32]} {[%emt
00:00:14]} 23. gxf4 {[%clk 00:13:40]} {[%emt 00:00:04]} exf4 {[%clk 00:14:40]}
{[%emt 00:00:02]} 24. Bd2 {[%clk 00:13:27]} {[%emt 00:00:23]} Bg4 {[%clk
00:14:31]} {[%emt 00:00:18]} 25. Rxe8 {[%clk 00:13:29]} {[%emt 00:00:10]} Rxe8
{[%clk 00:14:39]} {[%emt 00:00:01]} 26. Re1 {[%clk 00:13:23]} {[%emt 00:00:17]}
Rxe1+ {[%clk 00:14:41]} {[%emt 00:00:07]} 27. Nxe1 {[%clk 00:13:31]} {[%emt
00:00:01]} c4 {[%clk 00:14:44]} {[%emt 00:00:08]} 28. f3 {[%clk 00:13:35]}
{[%emt 00:00:07]} Bh5 {[%clk 00:14:45]} {[%emt 00:00:08]} 29. dxc4 {[%clk
00:13:42]} {[%emt 00:00:03]} Bf2 {[%clk 00:14:53]} {[%emt 00:00:02]} 30. b4
{[%clk 00:12:59]} {[%emt 00:00:53]} Bxe1 {[%clk 00:14:59]} {[%emt 00:00:04]} 31.
Bxe1 {[%clk 00:13:08]} {[%emt 00:00:01]} Bxf3 {[%clk 00:15:08]} {[%emt
00:00:01]} 32. Kd2 {[%clk 00:13:08]} {[%emt 00:00:09]} Kc8 {[%clk 00:15:12]}
{[%emt 00:00:05]} 33. Bf2 {[%clk 00:13:12]} {[%emt 00:00:07]} a6 {[%clk
00:15:17]} {[%emt 00:00:05]} 34. Ke1 {[%clk 00:13:21]} {[%emt 00:00:02]} Kd7
{[%clk 00:15:22]} {[%emt 00:00:03]} 35. c5 {[%clk 00:13:29]} {[%emt 00:00:04]}
dxc5 {[%clk 00:15:21]} {[%emt 00:00:11]} 36. bxc5 {[%clk 00:13:36]} {[%emt
00:00:02]} Bxd5 {[%clk 00:15:28]} {[%emt 00:00:03]} 37. Kd2 {[%clk 00:13:24]}
{[%emt 00:00:22]} c6 {[%clk 00:15:30]} {[%emt 00:00:09]} 38. Kd3 {[%clk
00:13:30]} {[%emt 00:00:03]} Ke6 {[%clk 00:15:34]} {[%emt 00:00:04]} 39. Kc3
{[%clk 00:13:37]} {[%emt 00:00:05]} Be4 {[%clk 00:15:29]} {[%emt 00:00:14]} 40.
Kb3 {[%clk 00:13:41]} {[%emt 00:00:08]} Kd5 {[%clk 00:15:33]} {[%emt 00:00:05]}
41. c4+ {[%clk 00:13:48]} {[%emt 00:00:02]} Ke5 {[%clk 00:15:31]} {[%emt
00:00:11]} 42. Kb4 {[%clk 00:13:56]} {[%emt 00:00:04]} Bd3 {[%clk 00:15:37]}
{[%emt 00:00:03]} 43. a4 {[%clk 00:14:03]} {[%emt 00:00:05]} Ke4 {[%clk
00:15:43]} {[%emt 00:00:03]} 44. Ka5 {[%clk 00:14:11]} {[%emt 00:00:02]} Bxc4
{[%clk 00:15:52]} {[%emt 00:00:02]} 45. Kb6 {[%clk 00:14:20]} Kd5 {[%clk
00:15:57]} {[%emt 00:00:04]} 46. Bg1 {[%clk 00:14:15]} {[%emt 00:00:14]} g4
{[%clk 00:16:03]} {[%emt 00:00:04]} 47. a5 {[%clk 00:14:16]} {[%emt 00:00:10]}
Bb5 {[%clk 00:16:07]} {[%emt 00:00:06]} 48. Bf2 {[%clk 00:14:16]} {[%emt
00:00:09]} h5 {[%clk 00:16:16]} {[%emt 00:00:02]} 49. Bh4 {[%clk 00:14:21]}
{[%emt 00:00:05]} Ke4 {[%clk 00:16:15]} {[%emt 00:00:11]} 50. Bf2 {[%clk
00:14:11]} {[%emt 00:00:19]} Kf3 {[%clk 00:16:24]} {[%emt 00:00:02]} 51. Bh4
{[%clk 00:14:15]} {[%emt 00:00:06]} g3 {[%clk 00:16:29]} {[%emt 00:00:05]} 52.
hxg3 {[%clk 00:14:22]} {[%emt 00:00:03]} fxg3 {[%emt 00:00:04]} 53. Bxg3 Kxg3
{[%emt 00:00:03]} 54. Kc7 {[%clk 00:14:26]} {[%emt 00:00:01]} h4 {[%clk
00:16:45]} {[%emt 00:00:02]} 55. Kd6 {[%clk 00:14:35]} {[%emt 00:00:01]} h3
{[%clk 00:16:54]} 56. Ke5 {[%clk 00:14:44]} {[%emt 00:00:01]} h2 {[%clk
00:17:03]} 57. Kd4 {[%clk 00:14:51]} h1=Q {[%clk 00:17:06]} {[%emt 00:00:09]}
58. Kc3 {[%clk 00:14:58]} {[%emt 00:00:02]} Qf3+ {[%clk 00:17:07]} {[%emt
00:00:08]} 59. Kb4 {[%clk 00:15:05]} {[%emt 00:00:03]} Qe4+ {[%clk 00:17:14]}
{[%emt 00:00:04]} 60. Kc3 {[%clk 00:15:14]} {[%emt 00:00:14]} Qc4+ {[%clk
00:17:30]} {[%emt 00:00:02]} 61. Kd2 {[%clk 00:15:22]} {[%emt 00:00:02]} Qd3+
{[%clk 00:17:36]} {[%emt 00:00:04]} 62. Ke1 {[%clk 00:15:30]} {[%emt 00:00:01]}
Qe2# {[%clk 00:17:45]} {[%emt 00:00:02]} 0-1

[Event "Chessity Nationale Pupillendag 2018 - Groep F"]
[Site "Meppel, Netherlands"]
[Date "2018.06.23"]
[Round "4.1"]
[White "Kazarjan, Gachatur"]
[Black "Paulzen, Yuko"]
[Result "1-0"]
[TimeControl "15 min + 10 sec"]
[WhiteElo "1020"]
[BlackElo "931"]

1. d4 {[%clk 00:15:20]} {[%emt 00:12:54]} d5 {[%clk 00:15:16]} {[%emt
00:00:04]} 2. c4 {[%clk 00:15:29]} {[%emt 00:00:01]} c6 {[%clk 00:15:21]}
{[%emt 00:00:05]} 3. Nc3 {[%clk 00:15:35]} {[%emt 00:00:04]} Nf6 {[%clk
00:15:25]} {[%emt 00:00:06]} 4. Nf3 {[%clk 00:15:36]} {[%emt 00:00:09]} Bg4
{[%clk 00:15:24]} {[%emt 00:00:10]} 5. Be3 {[%clk 00:15:10]} {[%emt 00:00:36]}
e6 {[%clk 00:15:09]} {[%emt 00:00:26]} 6. c5 {[%clk 00:15:07]} {[%emt
00:00:14]} g6 {[%clk 00:15:06]} {[%emt 00:00:12]} 7. Qb3 {[%emt 00:00:09]} Qe7
{[%clk 00:14:22]} {[%emt 00:00:51]} 8. Bg5 {[%clk 00:15:08]} {[%emt 00:00:13]}
Bg7 {[%clk 00:14:27]} {[%emt 00:00:04]} 9. Ne5 {[%clk 00:14:54]} {[%emt
00:00:24]} h6 {[%clk 00:12:51]} {[%emt 00:01:46]} 10. Bxf6 {[%clk 00:14:47]}
{[%emt 00:00:16]} Qxf6 {[%clk 00:12:23]} {[%emt 00:00:39]} 11. Nxg4 {[%clk
00:14:49]} {[%emt 00:00:08]} Qe7 {[%clk 00:12:15]} {[%emt 00:00:18]} 12. Rd1
{[%clk 00:14:39]} {[%emt 00:00:21]} Na6 {[%clk 00:11:59]} {[%emt 00:00:26]} 13.
e4 {[%clk 00:14:40]} {[%emt 00:00:09]} O-O {[%clk 00:10:42]} {[%emt 00:01:27]}
14. Bxa6 {[%clk 00:14:34]} {[%emt 00:00:16]} bxa6 {[%clk 00:10:47]} {[%emt
00:00:05]} 15. e5 {[%clk 00:14:39]} {[%emt 00:00:04]} f5 {[%clk 00:10:19]}
{[%emt 00:00:38]} 16. exf6 {[%clk 00:14:16]} {[%emt 00:00:34]} Bxf6 {[%clk
00:10:12]} {[%emt 00:00:16]} 17. Nxh6+ {[%clk 00:14:19]} {[%emt 00:00:09]} Kg7
{[%clk 00:09:55]} {[%emt 00:00:27]} 18. Ng4 {[%clk 00:14:26]} {[%emt 00:00:03]}
Bg5 {[%clk 00:09:35]} {[%emt 00:00:29]} 19. O-O {[%clk 00:14:19]} {[%emt
00:00:18]} Rf7 {[%clk 00:09:03]} {[%emt 00:00:42]} 20. Ne5 {[%clk 00:14:22]}
{[%emt 00:00:07]} Rf5 {[%clk 00:08:24]} {[%emt 00:00:47]} 21. Nxc6 {[%clk
00:14:25]} {[%emt 00:00:09]} Qf6 {[%clk 00:08:28]} {[%emt 00:00:07]} 22. Qb7+
{[%clk 00:14:15]} {[%emt 00:00:18]} Kh6 {[%clk 00:08:19]} {[%emt 00:00:19]} 23.
Rd3 {[%clk 00:14:00]} {[%emt 00:00:25]} Rf8 {[%clk 00:07:56]} {[%emt 00:00:34]}
24. Rh3 {[%clk 00:13:56]} {[%emt 00:00:14]} Bh4 {[%clk 00:07:24]} {[%emt
00:00:43]} 25. f3 {[%clk 00:13:46]} {[%emt 00:00:20]} Qg5 {[%clk 00:06:33]}
{[%emt 00:01:01]} 26. Nd1 {[%clk 00:13:15]} {[%emt 00:00:40]} Qf4 {[%clk
00:05:14]} {[%emt 00:01:29]} 27. g3 {[%clk 00:12:39]} {[%emt 00:00:46]} Rg5
{[%clk 00:03:59]} {[%emt 00:01:25]} 28. g4 {[%clk 00:12:30]} {[%emt 00:00:19]}
Rxg4+ {[%clk 00:03:24]} {[%emt 00:00:45]} 29. Kh1 {[%clk 00:12:09]} {[%emt
00:00:27]} Qg5 {[%clk 00:02:33]} {[%emt 00:01:04]} 30. Qxa6 {[%clk 00:11:54]}
{[%emt 00:00:25]} Rgf4 {[%clk 00:02:25]} {[%emt 00:00:19]} 31. Ne5 {[%clk
00:11:35]} {[%emt 00:00:29]} Rxd4 {[%clk 00:02:10]} {[%emt 00:00:25]} 32. Ng4
{[%clk 00:11:32]} {[%emt 00:00:12]} Kh5 {[%clk 00:01:52]} {[%emt 00:00:28]} 33.
Qxa7 {[%clk 00:11:30]} {[%emt 00:00:13]} Rh8 {[%clk 00:00:48]} {[%emt
00:01:14]} 34. Qg7 {[%clk 00:11:31]} {[%emt 00:00:08]} Rxg4 {[%clk 00:00:23]}
{[%emt 00:00:36]} 35. Qxh8 {[%clk 00:11:25]} {[%emt 00:00:15]} Qh6 {[%clk
00:00:31]} {[%emt 00:00:03]} 36. fxg4 {[%clk 00:11:31]} {[%emt 00:00:04]} Kg5
{[%clk 00:00:30]} {[%emt 00:00:11]} 37. Qxh6+ {[%clk 00:11:39]} {[%emt
00:00:02]} Kxh6 {[%clk 00:00:38]} {[%emt 00:00:02]} 38. Rxh4 {[%clk 00:11:47]}
{[%emt 00:00:02]} 1-0

[Event "Chessity Nationale Pupillendag 2018 - Groep F"]
[Site "Meppel, Netherlands"]
[Date "2018.06.23"]
[Round "4.2"]
[White "Madularea, David"]
[Black "Van Batenburg, Mees"]
[Result "1-0"]
[TimeControl "15 min + 10 sec"]
[WhiteElo "961"]
[BlackElo "962"]

1. Nf3 {[%clk 00:15:17]} {[%emt 00:00:02]} d5 {[%clk 00:15:18]} {[%emt
00:00:02]} 2. d4 {[%emt 00:00:04]} Nc6 {[%clk 00:15:27]} 3. c4 {[%clk
00:15:33]} {[%emt 00:00:01]} e6 {[%clk 00:15:31]} {[%emt 00:00:06]} 4. Nc3
{[%clk 00:15:39]} Nf6 {[%clk 00:15:32]} {[%emt 00:00:13]} 5. Bf4 {[%clk
00:15:50]} {[%emt 00:00:10]} Bb4 {[%clk 00:15:47]} {[%emt 00:00:05]} 6. Qc2
{[%clk 00:15:53]} {[%emt 00:00:07]} Ne4 {[%clk 00:15:50]} {[%emt 00:00:07]} 7.
e3 {[%clk 00:15:53]} {[%emt 00:00:10]} f6 {[%clk 00:15:33]} {[%emt 00:00:27]} 8.
a3 {[%clk 00:15:48]} {[%emt 00:00:15]} Bxc3+ {[%clk 00:15:41]} {[%emt
00:00:03]} 9. bxc3 {[%clk 00:15:55]} {[%emt 00:00:02]} Na5 {[%clk 00:15:35]}
{[%emt 00:00:13]} 10. g3 {[%clk 00:15:44]} {[%emt 00:00:23]} f5 {[%clk
00:15:14]} {[%emt 00:00:33]} 11. Ne5 {[%clk 00:15:27]} {[%emt 00:00:27]} c5
{[%clk 00:14:25]} {[%emt 00:00:59]} 12. f3 {[%clk 00:15:14]} {[%emt 00:00:25]}
Nd6 {[%clk 00:14:01]} {[%emt 00:00:25]} 13. dxc5 {[%clk 00:15:03]} {[%emt
00:00:28]} Ndxc4 {[%clk 00:14:05]} {[%emt 00:00:07]} 14. Nxc4 {[%clk 00:14:58]}
{[%emt 00:00:14]} Nxc4 {[%clk 00:14:13]} {[%emt 00:00:02]} 15. Bxc4 {[%clk
00:14:50]} {[%emt 00:00:18]} dxc4 {[%clk 00:14:22]} {[%emt 00:00:01]} 16. Qa4+
{[%clk 00:14:59]} Bd7 {[%clk 00:14:23]} {[%emt 00:00:08]} 17. Qxc4 {[%clk
00:15:06]} {[%emt 00:00:04]} O-O {[%clk 00:14:21]} {[%emt 00:00:12]} 18. O-O
{[%clk 00:15:03]} {[%emt 00:00:13]} Qe8 {[%clk 00:14:08]} {[%emt 00:00:22]} 19.
Qb4 {[%clk 00:14:40]} {[%emt 00:00:33]} e5 {[%clk 00:14:01]} {[%emt 00:00:18]}
20. Qb3+ {[%clk 00:13:52]} {[%emt 00:00:59]} Be6 {[%clk 00:13:55]} {[%emt
00:00:16]} 21. Qxb7 {[%clk 00:13:53]} {[%emt 00:00:08]} exf4 {[%clk 00:14:00]}
{[%emt 00:00:05]} 22. exf4 {[%clk 00:13:56]} {[%emt 00:00:07]} Bd7 {[%clk
00:13:21]} {[%emt 00:00:45]} 23. Rfe1 {[%clk 00:13:55]} {[%emt 00:00:13]} Qd8
{[%clk 00:13:00]} {[%emt 00:00:18]} 24. Rad1 {[%clk 00:13:48]} {[%emt
00:00:31]} Rf7 {[%clk 00:12:47]} {[%emt 00:00:23]} 25. c6 {[%clk 00:13:52]}
{[%emt 00:00:07]} Qc8 {[%clk 00:12:08]} {[%emt 00:00:39]} 26. Rxd7 {[%clk
00:13:55]} {[%emt 00:00:18]} Rxd7 {[%clk 00:12:10]} {[%emt 00:00:07]} 27. Qxc8+
{[%clk 00:13:46]} {[%emt 00:00:19]} Rxc8 {[%clk 00:12:17]} {[%emt 00:00:03]} 28.
cxd7 {[%clk 00:13:55]} {[%emt 00:00:02]} Rf8 {[%clk 00:12:07]} {[%emt
00:00:20]} 29. Re8 {[%clk 00:13:57]} {[%emt 00:00:07]} Kf7 {[%clk 00:12:08]}
{[%emt 00:00:07]} 30. Rxf8+ {[%clk 00:14:03]} {[%emt 00:00:05]} Kxf8 {[%clk
00:12:16]} {[%emt 00:00:01]} 31. d8=Q+ {[%clk 00:14:07]} {[%emt 00:00:07]} Kf7
{[%clk 00:12:25]} 32. Qd5+ {[%clk 00:14:11]} {[%emt 00:00:07]} Kg6 {[%clk
00:12:33]} {[%emt 00:00:03]} 33. Qe6+ {[%clk 00:14:18]} {[%emt 00:00:03]} Kh5
{[%clk 00:12:44]} {[%emt 00:00:11]} 34. Qxf5 {[%clk 00:14:31]} {[%emt
00:00:05]} Kh6 {[%clk 00:12:50]} {[%emt 00:00:04]} 35. g4 {[%clk 00:14:33]}
{[%emt 00:00:08]} g6 {[%clk 00:12:54]} {[%emt 00:00:06]} 36. Qf8 {[%clk
00:14:41]} {[%emt 00:00:02]} 1-0

[Event "Chessity Nationale Pupillendag 2018 - Groep F"]
[Site "Meppel, Netherlands"]
[Date "2018.06.23"]
[Round "4.3"]
[White "Fallaux, Storm"]
[Black "De Vreugt Pezo, Max"]
[Result "0-1"]
[TimeControl "15 min + 10 sec"]
[WhiteElo "779"]
[BlackElo "922"]

1. d4 {[%clk 00:15:19]} d5 {[%clk 00:15:19]} 2. c4 {[%clk 00:15:28]} {[%emt
00:00:02]} dxc4 {[%clk 00:15:27]} {[%emt 00:00:02]} 3. e4 {[%clk 00:15:37]} Nf6
{[%clk 00:15:36]} {[%emt 00:00:02]} 4. Nc3 {[%clk 00:15:45]} {[%emt 00:00:02]}
Nc6 {[%clk 00:15:44]} {[%emt 00:00:02]} 5. d5 {[%clk 00:15:53]} Ne5 {[%clk
00:15:51]} {[%emt 00:00:03]} 6. Bf4 {[%clk 00:16:00]} {[%emt 00:00:02]} Ng6
{[%clk 00:15:39]} {[%emt 00:00:22]} 7. Bg3 {[%clk 00:16:00]} {[%emt 00:00:10]}
Bd7 {[%clk 00:15:34]} {[%emt 00:00:15]} 8. Bxc4 {[%clk 00:16:04]} {[%emt
00:00:07]} e6 {[%clk 00:15:34]} {[%emt 00:00:10]} 9. Qe2 {[%clk 00:15:57]}
{[%emt 00:00:17]} Bb4 {[%clk 00:15:29]} {[%emt 00:00:17]} 10. Qd2 {[%clk
00:15:55]} {[%emt 00:00:10]} Nxe4 {[%clk 00:15:23]} {[%emt 00:00:17]} 11. Qd3
{[%clk 00:15:59]} {[%emt 00:00:06]} Nxg3 {[%clk 00:15:03]} {[%emt 00:00:30]} 12.
fxg3 {[%clk 00:16:03]} {[%emt 00:00:06]} O-O {[%clk 00:14:55]} {[%emt
00:00:17]} 13. Nf3 {[%clk 00:16:04]} {[%emt 00:00:10]} Re8 {[%clk 00:14:51]}
{[%emt 00:00:14]} 14. O-O {[%clk 00:16:00]} {[%emt 00:00:14]} Bc5+ {[%clk
00:14:32]} {[%emt 00:00:29]} 15. Kh1 {[%clk 00:16:00]} {[%emt 00:00:10]} exd5
{[%clk 00:14:30]} {[%emt 00:00:13]} 16. Qxd5 {[%clk 00:15:52]} {[%emt
00:00:18]} Qe7 {[%clk 00:14:11]} {[%emt 00:00:29]} 17. Rae1 {[%clk 00:15:35]}
{[%emt 00:00:26]} Qf8 {[%clk 00:13:58]} {[%emt 00:00:24]} 18. Rxe8 {[%clk
00:15:36]} {[%emt 00:00:09]} Bxe8 {[%clk 00:13:38]} {[%emt 00:00:29]} 19. Qxb7
{[%clk 00:15:29]} {[%emt 00:00:18]} Bd7 {[%clk 00:13:05]} {[%emt 00:00:43]} 20.
Qxc7 {[%clk 00:15:31]} {[%emt 00:00:08]} Bg4 {[%clk 00:12:53]} {[%emt
00:00:21]} 21. Ng5 {[%clk 00:15:22]} {[%emt 00:00:18]} Nh8 {[%clk 00:12:40]}
{[%emt 00:00:24]} 22. Bxf7+ {[%clk 00:15:01]} {[%emt 00:00:31]} Nxf7 {[%clk
00:12:39]} {[%emt 00:00:10]} 23. Qxf7+ {[%clk 00:15:03]} {[%emt 00:00:08]} Qxf7
{[%clk 00:12:35]} {[%emt 00:00:14]} 24. Rxf7 {[%clk 00:15:07]} {[%emt
00:00:06]} Re8 {[%clk 00:12:23]} {[%emt 00:00:23]} 25. h3 {[%clk 00:15:11]}
{[%emt 00:00:05]} Bh5 {[%clk 00:12:12]} {[%emt 00:00:21]} 26. Rf5 {[%clk
00:15:01]} {[%emt 00:00:20]} Bd6 {[%clk 00:12:04]} {[%emt 00:00:19]} 27. Nce4
{[%clk 00:14:50]} {[%emt 00:00:22]} Bc7 {[%clk 00:11:41]} {[%emt 00:00:33]} 28.
Nc3 {[%clk 00:14:21]} {[%emt 00:00:38]} Bxg3 {[%clk 00:11:10]} {[%emt
00:00:41]} 29. Nce4 {[%clk 00:14:18]} {[%emt 00:00:13]} Bc7 {[%clk 00:10:24]}
{[%emt 00:00:58]} 30. Nd2 {[%clk 00:13:52]} {[%emt 00:00:35]} Bg6 {[%clk
00:10:03]} {[%emt 00:00:31]} 31. Rf1 {[%clk 00:13:31]} {[%emt 00:00:26]} Bd3
{[%clk 00:10:11]} {[%emt 00:00:07]} 32. Rg1 {[%clk 00:13:02]} {[%emt 00:00:37]}
Bb6 {[%clk 00:10:14]} {[%emt 00:00:09]} 33. Rd1 {[%clk 00:12:42]} {[%emt
00:00:22]} Be2 {[%clk 00:10:04]} {[%emt 00:00:27]} 34. Rc1 {[%clk 00:12:32]}
{[%emt 00:00:20]} Be3 {[%clk 00:09:56]} {[%emt 00:00:19]} 35. Rc2 {[%clk
00:12:25]} {[%emt 00:00:16]} Bxg5 {[%clk 00:09:42]} {[%emt 00:00:25]} 36. Kh2
{[%clk 00:12:01]} {[%emt 00:00:33]} Bxd2 {[%clk 00:09:31]} {[%emt 00:00:23]} 37.
Rxd2 {[%emt 00:00:08]} Bb5 {[%clk 00:09:36]} {[%emt 00:00:02]} 38. b3 {[%clk
00:11:52]} {[%emt 00:00:24]} h6 {[%clk 00:09:36]} {[%emt 00:00:09]} 39. a4
{[%clk 00:11:50]} {[%emt 00:00:11]} Ba6 {[%clk 00:09:43]} {[%emt 00:00:04]} 40.
Rd6 {[%clk 00:11:48]} {[%emt 00:00:07]} Bb7 {[%clk 00:09:45]} {[%emt 00:00:13]}
41. Rd7 {[%clk 00:11:29]} {[%emt 00:00:28]} Rb8 {[%clk 00:09:44]} {[%emt
00:00:12]} 42. b4 {[%clk 00:11:32]} {[%emt 00:00:08]} a6 {[%clk 00:09:53]} 43.
Kg3 {[%clk 00:11:33]} {[%emt 00:00:09]} Kh7 {[%clk 00:09:54]} {[%emt 00:00:09]}
44. Kh4 {[%clk 00:11:36]} {[%emt 00:00:06]} Bxg2 {[%clk 00:09:46]} {[%emt
00:00:19]} 45. Rd4 {[%clk 00:11:11]} {[%emt 00:00:34]} g5 {[%clk 00:09:38]}
{[%emt 00:00:19]} 46. Kg3 {[%clk 00:11:15]} {[%emt 00:00:06]} Bc6 {[%clk
00:09:38]} {[%emt 00:00:10]} 47. a5 {[%clk 00:11:18]} {[%emt 00:00:07]} Bb5
{[%clk 00:09:38]} {[%emt 00:00:10]} 48. h4 {[%clk 00:10:35]} {[%emt 00:00:52]}
gxh4+ {[%clk 00:09:39]} {[%emt 00:00:10]} 49. Kxh4 {[%clk 00:10:43]} {[%emt
00:00:02]} Rg8 {[%clk 00:09:46]} {[%emt 00:00:03]} 50. Re4 {[%clk 00:10:39]}
{[%emt 00:00:12]} Rg6 {[%clk 00:09:46]} {[%emt 00:00:12]} 51. Re7 {[%clk
00:10:39]} {[%emt 00:00:10]} Rg7 {[%clk 00:09:55]} {[%emt 00:00:02]} 52. Re6
{[%clk 00:10:44]} {[%emt 00:00:04]} Rf7 {[%clk 00:09:41]} {[%emt 00:00:23]} 53.
Kg4 {[%clk 00:10:43]} {[%emt 00:00:11]} Bd7 {[%clk 00:09:50]} {[%emt 00:00:02]}
54. Kh5 {[%clk 00:10:44]} {[%emt 00:00:08]} Bxe6 {[%clk 00:09:57]} {[%emt
00:00:05]} 55. b5 {[%clk 00:10:53]} axb5 {[%clk 00:10:05]} {[%emt 00:00:03]} 56.
a6 {[%clk 00:11:02]} b4 {[%clk 00:10:12]} {[%emt 00:00:03]} 57. a7 {[%clk
00:11:10]} Rxa7 {[%clk 00:10:17]} {[%emt 00:00:05]} 58. Kh4 {[%clk 00:11:18]}
{[%emt 00:00:02]} b3 {[%clk 00:10:25]} {[%emt 00:00:02]} 59. Kh5 {[%clk
00:11:25]} {[%emt 00:00:03]} b2 {[%clk 00:10:34]} {[%emt 00:00:02]} 60. Kh4
{[%clk 00:11:33]} {[%emt 00:00:02]} b1=Q {[%clk 00:10:40]} {[%emt 00:00:04]} 61.
Kg3 {[%clk 00:11:40]} {[%emt 00:00:02]} Qg6+ {[%clk 00:10:48]} {[%emt
00:00:03]} 62. Kf3 {[%clk 00:11:47]} {[%emt 00:00:03]} Rf7+ {[%clk 00:10:56]}
{[%emt 00:00:01]} 63. Ke3 {[%clk 00:11:55]} {[%emt 00:00:03]} Qg3+ {[%clk
00:11:01]} {[%emt 00:00:05]} 64. Ke4 {[%clk 00:12:03]} {[%emt 00:00:02]} Qe1+
{[%clk 00:11:07]} {[%emt 00:00:04]} 65. Kd3 {[%clk 00:12:10]} {[%emt 00:00:03]}
Rd7+ {[%clk 00:11:15]} 66. Kc2 {[%clk 00:12:19]} {[%emt 00:00:03]} Bf5+ {[%clk
00:11:23]} {[%emt 00:00:02]} 67. Kb2 {[%clk 00:12:27]} {[%emt 00:00:02]} Qb4+
{[%clk 00:11:29]} {[%emt 00:00:03]} 68. Kc1 {[%clk 00:12:33]} {[%emt 00:00:04]}
Qc5+ {[%clk 00:11:36]} {[%emt 00:00:04]} 69. Kb2 {[%clk 00:12:41]} {[%emt
00:00:02]} Rb7+ {[%clk 00:11:45]} {[%emt 00:00:02]} 70. Ka2 {[%clk 00:12:47]}
{[%emt 00:00:04]} Qa5# {[%emt 00:00:01]} 0-1